Cogmind - Beta 10.2 @@@ ROGUE MODE // 2021.02.04 @ 22:43:03 Player: Demise Result: Destroyed by G-47 Trooper with Particle Gun Performance ------------- Evolutions (0) 0 Regions Visited (2) 400 Robots Destroyed (61) 305 Value Destroyed (746) 746 Prototype IDs (0) 0 Alien Tech Used (0) 0 Bonus (-10) -10 TOTAL SCORE: 1441 Bonus ------- Friendly Fire -10 Cogmind --------- Core Integrity 0/250 Matter 202/300 Energy 250/250 System Corruption 2% Temperature Cool (18) Movement Treading (160) Location -10/Mines Parts ------- > --- POWER (1) -------- Ion Engine > --- PROPULSION (2) --- Light Treads Light Treads > --- UTILITY (2) ------ Large Storage Unit Large Storage Unit > --- WEAPON (2) ------- Light Assault Rifle Light Assault Rifle > --- INVENTORY (16) --- Ion Engine Light Treads Light Treads Light Treads Structural Scanner Improved Signal Interpreter Improved Targeting Computer Core Shielding Light Armor Plating Light Armor Plating Light Armor Plating Hacking Suite Assault Rifle Assault Rifle Light Assault Rifle Datajack Peak State ------------ > --- POWER ------------ Light Nuclear Core > --- PROPULSION ------- Light Treads Light Treads > --- UTILITY ---------- Large Storage Unit Core Shielding > --- WEAPON ----------- Assault Rifle Assault Rifle > --- INVENTORY -------- Ion Engine Light Ion Engine Large Storage Unit Structural Scanner Light Armor Plating EM Pulse Gun Light Assault Rifle Light Assault Rifle Light Assault Rifle Mining Laser [Rating: 10] Favorites ----------- Power Ion Engine Engine Ion Engine Power Core Light Nuclear Core Propulsion Light Treads Treads Light Treads Utility Large Storage Unit Storage Large Storage Unit Processor Improved Signal Interpreter Protection Core Shielding Weapon Assault Rifle Ballistic Gun Assault Rifle Special Weapon Mining Laser Build | -11 -10 -10 ------- Run | Scr Mat Min Slots Evolved . | . . . Power . | . . . Propulsion . | . . . Utility . | . . . Weapon . | . . . Parts Attached 23 | 5 15 3 Power 3 | . 3 . Engine 2 | . 2 . Core 1 | . 1 . Reactor . | . . . Propulsion 6 | 2 3 1 Treads 6 | 2 3 1 Leg . | . . . Wheel . | . . . Hover . | . . . Flight . | . . . Utility 5 | . 5 . Device . | . . . Storage 2 | . 2 . Processor 2 | . 2 . Hackware . | . . . Protection 1 | . 1 . Artifact . | . . . Weapon 9 | 3 4 2 Energy Gun . | . . . Energy Cannon . | . . . Ballistic Gun 7 | 3 2 2 Ballistic Cannon . | . . . Launcher . | . . . Special Weapon 2 | . 2 . Impact Weapon . | . . . Slashing Weapon . | . . . Piercing Weapon . | . . . Special Melee Weapon . | . . . Unidentified Prototypes . | . . . Parts Lost 1 | . 1 . Power . | . . . Propulsion . | . . . Utility . | . . . Weapon 1 | . 1 . Highest Loss Streak 1 | . 1 . Average Slot Usage (%) 97 | . 96 100 Engine 10 | . 9 14 Core 2 | . 2 . Treads 27 | . 27 28 Storage 20 | . 19 28 Processor 3 | . 3 . Protection 3 | . 3 . Ballistic Gun 27 | . 27 28 Naked Turns . | . . . Heaviest Build 41 | 4 41 41 Greatest Support 40 | 3 40 40 Greatest Overweight (x) 1 | 1 1 1 Average Overweight (x) . | . . 1 Largest Inventory Capacity 16 | 4 16 16 Average Capacity 12 | 4 12 16 Most Carried 16 | 4 16 16 Average Carried 11 | 3 11 16 Final Capacity 16 | 4 16 16 Final Carried 16 | 4 16 16 Class Distribution -------------------- 100% | Mutant Dominant Class ---------------- Mutant | -10/Materials Mutant | -10/Mines Resources | -11 -10 -10 ----------- Run | Scr Mat Min Matter Collected 1229 | 286 904 39 Remotely . | . . . Salvage Created 1727 | 86 1431 210 Parts 142 | 5 119 18 Haulers Intercepted 2 | . 2 . Recyclers Shooed 4 | . 4 . Parts Field Recycled . | . . . Retrieved Matter . | . . . Parts Self-Destructed . | . . . Prevented . | . . . Kills | -11 -10 -10 ------- Run | Scr Mat Min Combat Hostiles Destroyed 22 | . 16 6 Guns 22 | . 16 6 Classes Destroyed 9 | 2 7 . Worker 15 | . 15 . Builder 8 | . 7 1 Tunneler 5 | 1 3 1 Hauler 2 | . 2 . Recycler 6 | 1 5 . Operator 1 | . 1 . Watcher 2 | . 2 . Swarmer 9 | . 6 3 Grunt 13 | . 10 3 Best Kill Streak 5 | 2 5 3 Combat Bots Only 5 | . 5 3 Max Kills in Single Turn 2 | 1 2 2 Gunslinging . | . . . Exploded . | . . . Melee . | . . . Uniques/NPCs Destroyed . | . . . Combat | -11 -10 -10 -------- Run | Scr Mat Min Damage Taken 972 | . 573 399 Core 257 | . 152 105 Absorbed by Shields . | . . . Core Remaining (%) 100 | 100 . . Volleys Fired 174 | 12 135 27 Largest 2 | 1 2 2 Hottest 100 | 20 100 40 Shots Fired 325 | 12 260 53 Gun 318 | 12 253 53 Cannon . | . . . Launcher . | . . . Special 7 | . 7 . Kinetic 318 | 12 253 53 Thermal 7 | . 7 . Explosive . | . . . Electromagnetic . | . . . Robot Hit Streak 28 | 9 17 28 Robot Miss Streak 4 | 2 4 3 Penetration Max . | . . . Secondary Targets 3 | . 3 . Max Gunslinging Chain 1 | . 1 . Shots Hit Robots 179 | 10 129 40 Core Hits 84 | 3 65 16 Critical Hits 2 | . 2 . Critical Kills 1 | . 1 . Critical Parts Destroyed 1 | . 1 . Melee Attacks . | . . . Impact . | . . . Slashing . | . . . Piercing . | . . . Sneak Attacks . | . . . Combat Hostiles . | . . . Follow-up Attacks . | . . . Damage Inflicted 2182 | 133 1651 398 Guns 2182 | 133 1651 398 Cannons . | . . . Explosions . | . . . Melee . | . . . Ramming . | . . . Kinetic 2182 | 133 1651 398 Thermal . | . . . Explosive . | . . . Electromagnetic . | . . . Impact . | . . . Slashing . | . . . Piercing . | . . . Highest Corruption 2 | . 2 2 Average Corruption 2 | . 2 2 Corruption Purged . | . . . Effects 20 | . 13 7 Message Errors 4 | . 2 2 Heat Flow Errors 2 | . 2 . Energy Discharges 2 | . 2 . Data Loss (minor) 2 | . 2 . Targeting Errors 8 | . 4 4 Weapon Failures 2 | . 1 1 Overload Shots . | . . . Overflow Damage . | . . . Projectiles . | . . . Explosions . | . . . Melee . | . . . Knockbacks . | . . . Impact . | . . . Kinetic . | . . . Secondary . | . . . Self-Inflicted Damage . | . . . Shots . | . . . Rammed . | . . . Targets Rammed . | . . . Kicked . | . . . Crushed . | . . . Highest Temperature 249 | . 249 18 Average Temperature 34 | . 45 5 Received Heat Transfer 327 | . 135 192 Effects 1 | . 1 . Energy Bleed 1 | . 1 . Siege Activations . | . . . Robots Corrupted . | . . . Combat Hostiles . | . . . Parts Fried . | . . . Impact Corruptions . | . . . Robots Melted . | . . . Combat Hostiles . | . . . Parts Melted . | . . . Heat Transferred . | . . . Parts Sabotaged . | . . . Parts Stolen . | . . . Parts Stripped . | . . . Power Chain Reactions . | . . . Missiles Intercepted . | . . . Alert | -11 -10 -10 ------- Run | Scr Mat Min Peak Influence 287 | 10 287 199 Initial 19 | . 6 19 Average 100 | 3 104 90 Maximum Alert Level 1 | . 1 . Low Security (%) 89 | 100 88 100 Level 1 10 | . 11 . Level 2 . | . . . Level 3 . | . . . Level 4 . | . . . Level 5 . | . . . High Security . | . . . Max Security . | . . . Squads Dispatched 4 | . 4 . Investigation 3 | . 3 . Extermination . | . . . Reinforcement 1 | . 1 . Assault . | . . . Garrison . | . . . Intercept . | . . . Construction Impeded . | . . . Haulers Reinforced . | . . . Stealth | -11 -10 -10 --------- Run | Scr Mat Min Distress Signals . | . . . Communications Jammed . | . . . Distress Signals . | . . . Times Spotted 35 | . 27 8 Peak Tracking Total 4 | . 4 4 Tactical Retreats 3 | . 1 2 Traps | -11 -10 -10 ------- Run | Scr Mat Min Traps Triggered 1 | . 1 . Indirectly . | . . . Trap Hack Attempts . | . . . Triggered . | . . . Disarmed . | . . . Reprogrammed . | . . . Reused . | . . . Traps Extracted . | . . . Installed . | . . . Triggered . | . . . Machines | -11 -10 -10 ---------- Run | Scr Mat Min Machines Disabled 2 | . 2 . Max in Single Turn 1 | . 1 . Machines Sabotaged . | . . . Garrisons Compromised . | . . . Overloaded Fab Kills . | . . . Fab Network Shutdowns . | . . . Hacking | -11 -10 -10 --------- Run | Scr Mat Min Machines Accessed 10 | . 10 . Terminals 7 | . 7 . Fabricators . | . . . Repair Stations 1 | . 1 . Recycling Units 2 | . 2 . Scanalyzers . | . . . Garrison Access . | . . . Total Hacks 37 | . 37 . Successful 24 | . 24 . Failed 12 | . 12 . Catastrophic . | . . . Database Lockouts 1 | . 1 . Manual 27 | . 27 . Terminals 26 | . 26 . Fabricators . | . . . Repair Stations 3 | . 3 . Recycling Units 8 | . 8 . Scanalyzers . | . . . Garrison Access . | . . . Terminal Hacks 6 | . 6 . Part Schematic 1 | . 1 . Robot Analysis 4 | . 4 . Terminal Index 1 | . 1 . Fabricator Hacks . | . . . Repair Station Hacks 3 | . 3 . Scan Component 2 | . 2 . Repair 1 | . 1 . Recycling Unit Hacks 1 | . 1 . Retrieve Components 1 | . 1 . Scanalyzer . | . . . Garrison Access Hacks . | . . . Unauthorized Hacks 14 | . 14 . Terminals 10 | . 10 . Track 2 | . 2 . Assimilate 2 | . 2 . Botnet 5 | . 5 . Operators 1 | . 1 . Fabricators . | . . . Repair Stations . | . . . Recycling Units 4 | . 4 . Reject 2 | . 2 . Mask 2 | . 2 . Scanalyzers . | . . . Garrison Access . | . . . Data Cores Recovered . | . . . Used . | . . . Hacking Detections 9 | . 9 . Full Trace Events 4 | . 4 . Feedback Events . | . . . Feedback Blocked . | . . . Robot Schematics Acquired . | . . . Robots Built . | . . . Matter . | . . . Time . | . . . Total Robot Build Rating . | . . . Part Schematics Acquired 1 | . 1 . Parts Built . | . . . Matter . | . . . Time . | . . . Total Part Build Rating . | . . . Parts Repaired 1 | . 1 . Time 26 | . 26 . Parts Recycled . | . . . Recycled Matter . | . . . Retrieved Matter . | . . . Retrieved Components . | . . . Parts Scanalyzed . | . . . Part Schematics Acquired . | . . . Parts Damaged . | . . . Bothacking | -11 -10 -10 ------------ Run | Scr Mat Min Used RIF Installer . | . . . Robots Hacked . | . . . Non-combat . | . . . Combat . | . . . Robot Hacks Applied . | . . . Relay Couplers Released . | . . . Robots Rewired . | . . . Allies Hacked . | . . . Hacks Repelled . | . . . Allies | -11 -10 -10 -------- Run | Scr Mat Min Total Allies 1 | . 1 . Largest Group 1 | . 1 1 Highest-Rated Group 10 | . 10 9 Highest-Rated Ally 10 | . 10 9 Total Orders 2 | . 2 . STAY 1 | . 1 . FOLLOW 1 | . 1 . Ally Attacks . | . . . Total Damage . | . . . Kills . | . . . Allies Corrupted . | . . . Allies Melted . | . . . Intel | -11 -10 -10 ------- Run | Scr Mat Min Robot Analysis Total 4 | . 4 . Derelict Logs Recovered 2 | . . 2 Drone Launches . | . . . Drone Recoveries . | . . . Exploration | -11 -10 -10 ------------- Run | Scr Mat Min Turns Passed 2955 | 59 2544 352 Spaces Moved 1354 | 39 1172 143 Core 234 | 39 195 . Treads 1120 | . 977 143 Legs . | . . . Wheels . | . . . Hover . | . . . Flight . | . . . Fastest Speed 50 | 50 100 180 Average Speed 158 | 57 158 180 Slowest Speed 180 | 100 180 180 Overloaded Moves . | . . . Propulsion Burnouts . | . . . Robots Hopped . | . . . Cave-ins Triggered 1 | . 1 . Exploration Rate (%) 46 | 5 98 37 Regions Visited 2 Branch Regions 1 Pre-discovered Areas 1 | . . 1 Known Exits Taken 1 | . 1 . Unknown Exits Taken 1 | 1 . . Scrap Searched 1 | . . 1 Spaces Dug 3 | . 3 . Terrain Destroyed 7 | . 7 . Melee . | . . . Projectile 7 | . 7 . AOE . | . . . Terrain Rammed . | . . . Walls Destroyed . | . . . Machines Disabled . | . . . Actions | -11 -10 -10 --------- Run | Scr Mat Min Total 1842 | 62 1590 190 Wait 241 | . 227 14 Move 1352 | 38 1171 143 Hop . | . . . Pick Up 32 | 6 25 1 Fast Attach 8 | 2 6 . Attach 6 | 3 3 . Detach 4 | 1 3 . Swap 9 | . 6 3 Drop 16 | . 14 2 Fire 174 | 12 135 27 Melee . | . . . Ram . | . . . Kick . | . . . Crush . | . . . Escape Stasis . | . . . Rewire . | . . . Trap . | . . . Miscellaneous . | . . . Route ------- -11/Scrapyard -10/Materials (discovered 5 exits: *Mat x3 / *Min x2) -10/Mines (discovered 1 exit: *Mat) History --------- Turn | Location | Event 33 | -11/Scrapyard | Discovered new exit (range 16) 60 | -11/Scrapyard | Entered Materials 272 | -10/Materials | Discovered new exit (range 13) 288 | -10/Materials | Identified exit to Mines 317 | -10/Materials | Build established: Mutant 443 | -10/Materials | Discovered new exit (range 14) 463 | -10/Materials | Identified exit to Materials 653 | -10/Materials | Discovered exit to Mines (range 8) 698 | -10/Materials | Central database locked down 1063 | -10/Materials | Discovered exit to Materials (range 15) 1179 | -10/Materials | Repaired Lgt. Treads 1252 | -10/Materials | Discovered exit to Materials (range 15) 1255 | -10/Materials | Crushed by falling debris 1255 | -10/Materials | Core integrity fell below 50% 2604 | -10/Materials | Entered Mines 2604 | -10/Mines | Accompanied by 1 ally 2605 | -10/Mines | Learned location of Storage (-8) 2606 | -10/Mines | Learned 4 Materials zone layouts 2694 | -10/Mines | Discovered exit to Materials (range 12) 2920 | -10/Mines | Core integrity fell below 20% 2956 | -10/Mines | Destroyed by G-47 Trooper with Particle Gun Last Messages --------------- 02796_ Acquired derelict log, extracted data. Data stored: Mines entrances (x2). 02797_ R-06 Scavenger collects Lgt. Assault Rifle. 02800_ R-06 Scavenger collects Flight Unit. 02834_ T-07 Excavator destroyed. 02834_ U-05 Engineer destroyed. 02839_ Acquired 6 matter. 02845_ R-06 Scavenger collects Lgt. Ion Engine. 02849_ R-06 Scavenger collects Terrain Scanner. 02861_ Searching scrap... 02861_ Found Lgt. Treads. 02861_ Found Tractor Beam. 02861_ Found Welding Torch. 02861_ Found 30 Matter. 02871_ Dropped Lgt. Treads. 02902_ System corrupted: Assault Rifle targeting data glitched. 02904_ G0YPI/AGHNOFT3|SHYD#RD/3VUQ 02941_ System corrupted: Lgt. Assault Rifle targeting data glitched. Map ----- +----------------------------------------------------+ | ???# ### ##??# #????????? | | ???# ##?# ##???# #????????? | | ???## ####??## ##????# #????##### | | ????### #??????####?????# %###### | | ??????# #???????????????# | | ??????# #???####????????# | | ??????# #??## ##???????## ##### | | ??????# #### ###??????# #???##### | | ?????## ## *####???# #???????## | | ?????# """" %= ##### #????????# | | ?????# """" #????????# | | ?????# """" ######????????? | | ?????## ## ##?????????????? | | ??????# #### #########??????????? | | ??????# #??## ##??## ##?????????? | | ??????# #???##=#??## ##????????? | | ??????# ######=#### #??????? | | ??????# !!%=|% ##????? | | ??????############## ##?? | | ???????????????????## ## | | ????????????????????## # | | ?????????????????????## #? | | ??????????????????????# ###? | | ??????????############# ##??? | | ??????????#%! | ##???? | | ??????????#%@ o =%! #????? | | ??????????#g############### ##????? | | ??????????#=#??????????????####?????? | | ??????????# #???????????????????????? | | ?????????? #???????????????????????? | | ?????????? ???????????????????????? | | ?????????? ???????????????????????? | | ?????????? ???????????????????????? | | ????????? ???????????????????????? | | ????????? ???????????????????????? | | ????????? ## ???????????????????????? | | ????????? ??##??????????????????????? | | ????????# ??????????????????????????? | | ???????? ??????????????????????????? | | ???????? ??????????????????????????? | | ???????? ???????????????????????????? | | ????????????????????????????????????? | | ????????????????????????????????????? | | ????????????????????????????????????? | | ????????????????????????????????????? | | ????????????????????????????????????? | | ????????????????????????????????????? | | ????????????????????????????????????? | | ????????????????????????????????????? | | ????????????????????????????????????? | +----------------------------------------------------+ Best States ------------- Heat Dissipation 25 Energy Generation 14 Energy Capacity 250 Matter Stores 300 Matter Capacity 300 Sight Range 16 Terrain Scan Density 10 Core Shielding 20 Evasion (%) 50 Targeting Accuracy 6 Recoil Reduction 2 Item Schematics ----------------- Hcp. Storage Unit | -10/Materials | Hacked Robot Schematics ------------------ None Fabricated ------------ Nothing Alien Tech Used ----------------- None Achievements -------------- None Challenges ------------ None Game ------ Seed ResetSuspensionProtomatter Manual? 0 Play Time 00:17:05 Cumulative 276.2 hours Start 2021.02.04 @ 22:27:03 End 2021.02.04 @ 22:43:03 Sessions 1 Manual Loads 0 Difficulty Rogue Special Mode None Game No. 242 Rogue 242 Adventurer 0 Explorer 0 Win Type - Total 1 Types 0/0/0/1/0/0/0/0/0 Lore% 64 Gallery% 74 Achievement% 57 Wizard Run 0 Options --------- ASCII 0 Keyboard 1 Movement Numpad Keybinds 0 Fullscreen 1 Font 12/Terminus Map View 83x54 Tactical HUD 1 Map Filters NONE Filters NONE Steam 1 RUN: d9fa8d3c-053f-49d7-909d-8161c23880a7